fUST/lending_fUST_20250829
["ID","MTS","AMOUNT","RATE_DAILY","PERIOD"]
[381938734,1756429853727,-480.0,0.0002,2]
[381938736,1756429853737,-480.0,0.0002,2]
[381938738,1756429853746,-480.0,0.0002,2]
[381938740,1756429853756,-209.940741,0.0002,2]
[381938742,1756429853765,-480.0,0.0002,2]
[381938744,1756429853775,-209.940741,0.0002,2]
[381938746,1756429853784,-209.940741,0.0002,2]
[381938748,1756429853793,-209.940741,0.0002,2]
[381938750,1756429853802,-480.0,0.0002,2]
[381938752,1756429853812,-480.0,0.0002,2]
[381938754,1756429853821,-480.0,0.0002,2]
[381938756,1756429853831,-480.0,0.0002,2]
[381938758,1756429853840,-480.0,0.0002,2]
[381938760,1756429853849,-480.0,0.0002,2]
[381938762,1756429853858,-153.196318,0.0002,2]
[381938764,1756429853867,-605.36545102,0.0002,2]
[381938766,1756429853877,-480.0,0.0002,2]
[381938768,1756429853886,-480.0,0.0002,2]
[381938770,1756429853895,-480.0,0.0002,2]
[381938772,1756429853905,-157.26,0.0002,2]
[381938774,1756429853914,-480.0,0.0002,2]
[381938776,1756429853923,-480.0,0.0002,2]
[381938778,1756429853932,-480.0,0.0002,2]
[381938780,1756429853941,-216.063153,0.0002,2]
[381938782,1756429853951,-480.0,0.0002,2]
[381938784,1756429853960,-480.0,0.0002,2]
[381938786,1756429853969,-480.0,0.0002,2]
[381938788,1756429853979,-480.0,0.0002,2]
[381938790,1756429853988,-151.0,0.0002,2]
[381938792,1756429853997,-151.0,0.0002,2]
[381938794,1756429854006,-480.0,0.0002,2]
[381938796,1756429854015,-480.0,0.0002,2]
[381938798,1756429854024,-480.0,0.0002,2]
[381938800,1756429854033,-480.0,0.0002,2]
[381938802,1756429854044,-480.0,0.0002,2]
[381938804,1756429854054,-595.76,0.0002,2]
[381938806,1756429854063,-480.0,0.0002,2]
[381938808,1756429854072,-151.0,0.0002,2]
[381938810,1756429854081,-480.0,0.0002,2]
[381938812,1756429854090,-480.0,0.0002,2]
[381938814,1756429854099,-480.0,0.0002,2]
[381938816,1756429854108,-480.0,0.0002,2]
[381938817,1756429854117,-255.308479,0.0002,2]
[381938819,1756429854128,-255.308479,0.0002,2]
[381938821,1756429854137,-255.308479,0.0002,2]
[381938823,1756429854147,-255.308479,0.0002,2]
[381938825,1756429854156,-151.0,0.0002,2]
[381938827,1756429854165,-480.0,0.0002,2]
[381938829,1756429854175,-480.0,0.0002,2]
[381938831,1756429854184,-480.0,0.0002,2]
[381938833,1756429854193,-151.0,0.0002,2]
[381938835,1756429854202,-480.0,0.0002,2]
[381938837,1756429854212,-151.025027,0.0002,2]
[381938839,1756429854222,-151.025027,0.0002,2]
[381938841,1756429854231,-480.0,0.0002,2]
[381938843,1756429854240,-151.025027,0.0002,2]
[381938845,1756429854249,-151.025027,0.0002,2]
[381938847,1756429854259,-252.29,0.0002,2]
[381938849,1756429854268,-480.0,0.0002,2]
[381938851,1756429854277,-480.0,0.0002,2]
[381938853,1756429854286,-480.0,0.0002,2]
[381938855,1756429854295,-480.0,0.0002,2]
[381938857,1756429854305,-480.0,0.0002,2]
[381938859,1756429854314,-480.0,0.0002,2]
[381938861,1756429854322,-480.0,0.0002,2]
[381938863,1756429854332,-511.73,0.0002,2]
[381938865,1756429854340,-480.0,0.0002,2]
[381938867,1756429854350,-480.0,0.0002,2]
[381938869,1756429854358,-480.0,0.0002,2]
[381938871,1756429854368,-480.0,0.0002,2]
[381938873,1756429854377,-480.0,0.0002,2]
[381938875,1756429854390,-1614.17,0.0002,2]
[381938877,1756429854404,-480.0,0.0002,2]
[381938879,1756429854414,-480.0,0.0002,2]
[381938881,1756429854423,-480.0,0.0002,2]
[381938883,1756429854432,-480.0,0.0002,2]
[381938885,1756429854442,-151.0,0.0002,2]
[381938887,1756429854451,-576.46,0.0002,2]
[381938889,1756429854460,-151.0,0.0002,2]
[381938891,1756429854470,-151.0,0.0002,2]
[381938893,1756429854479,-480.0,0.0002,2]
[381938895,1756429854489,-480.0,0.0002,2]
[381938897,1756429854499,-577.53,0.0002,2]
[381938899,1756429854508,-480.0,0.0002,2]
[381938901,1756429854517,-480.0,0.0002,2]
[381938902,1756429854527,-199.88,0.0002,2]
[381938905,1756429854537,-151.0,0.0002,2]
[381938907,1756429854546,-480.0,0.0002,2]
[381938909,1756429854555,-256.079318,0.0002,2]
[381938911,1756429854564,-151.0,0.0002,2]
[381938913,1756429854574,-480.0,0.0002,2]
[381938915,1756429854584,-151.0,0.0002,2]
[381938917,1756429854593,-151.0,0.0002,2]
[381938919,1756429854603,-480.0,0.0002,2]
[381938921,1756429854612,-480.0,0.0002,2]
[381938923,1756429854622,-151.0,0.0002,2]
[381938933,1756429854631,-480.0,0.0002,2]
[381938935,1756429854719,-151.0,0.0002,2]
[381938937,1756429854729,-480.0,0.0002,2]
[381938939,1756429854739,-480.0,0.0002,2]
[381938941,1756429854748,-151.0,0.0002,2]
[381938942,1756429854757,-480.0,0.0002,2]
[381938944,1756429854766,-480.0,0.0002,2]
[381938946,1756429854776,-480.0,0.0002,2]
[381938948,1756429854785,-480.0,0.0002,2]
[381938950,1756429854795,-176.49,0.0002,2]
[381938952,1756429854804,-480.0,0.0002,2]
[381938954,1756429854813,-480.0,0.0002,2]
[381938956,1756429854822,-1110.27,0.0002,2]
[381938957,1756429854832,-179.13,0.0002,2]
[381938959,1756429854842,-480.0,0.0002,2]
[381938961,1756429854851,-480.0,0.0002,2]
[381938963,1756429854860,-480.0,0.0002,2]
[381938965,1756429854870,-480.0,0.0002,2]
[381938967,1756429854880,-480.0,0.0002,2]
[381938968,1756429854888,-480.0,0.0002,2]
[381938970,1756429854897,-168.75659731,0.0002,2]
[381938972,1756429854907,-480.0,0.0002,2]
[381938974,1756429854916,-480.0,0.0002,2]
[381938976,1756429854926,-480.0,0.0002,2]
[381938978,1756429854935,-450.12683111,0.0002,2]
[381938980,1756429854944,-480.0,0.0002,2]
[381938981,1756429854954,-151.0,0.0002,2]
[381938983,1756429854966,-480.0,0.0002,2]
[381938985,1756429854975,-151.0,0.0002,2]
[381938987,1756429854985,-151.0,0.0002,2]
[381938989,1756429854994,-151.0,0.0002,2]
[381938991,1756429855003,-480.0,0.0002,2]
[381938993,1756429855012,-480.0,0.0002,2]
[381938994,1756429855021,-480.0,0.0002,2]
[381938996,1756429855031,-480.0,0.0002,2]
[381938998,1756429855040,-480.0,0.0002,2]
[381939000,1756429855049,-480.0,0.0002,2]
[381939002,1756429855059,-480.0,0.0002,2]
[381939004,1756429855067,-480.0,0.0002,2]
[381939005,1756429855077,-480.0,0.0002,2]
[381939007,1756429855087,-480.0,0.0002,2]
[381939009,1756429855096,-160.0,0.0002,3]
[381939011,1756429855105,-493.61,0.0002,2]
[381939013,1756429855114,-2212.03,0.0002,2]
[381939015,1756429855124,-480.0,0.0002,2]
[381939016,1756429855133,-480.0,0.0002,2]
[381939018,1756429855142,-276.19,0.0002,2]
[381939020,1756429855151,-480.0,0.0002,2]
[381939022,1756429855161,-626.65,0.0002,2]
[381939024,1756429855171,-480.0,0.0002,2]
[381939025,1756429855180,-637.72063,0.0002,2]
[381939027,1756429855190,-480.0,0.0002,2]
[381939029,1756429855200,-637.72063,0.0002,2]
[381939031,1756429855210,-480.0,0.0002,2]
[381939033,1756429855219,-480.0,0.0002,2]
[381939035,1756429855228,-480.0,0.0002,2]
[381939036,1756429855237,-480.0,0.0002,2]
[381939038,1756429855247,-637.72063,0.0002,2]
[381939040,1756429855256,-151.0,0.0002,2]
[381939042,1756429855265,-637.72062738,0.0002,2]
[381939043,1756429855274,-241.69,0.0002,2]
[381939045,1756429855283,-224.971631,0.0002,2]
[381939047,1756429855293,-224.971631,0.0002,2]
[381939049,1756429855302,-479.2,0.0002,2]
[381939051,1756429855311,-224.971631,0.0002,2]
[381939053,1756429855321,-480.0,0.0002,2]
[381939055,1756429855331,-224.971623,0.0002,2]
[381939057,1756429855340,-480.0,0.0002,2]
[381939058,1756429855350,-200.11,0.0002,2]
[381939060,1756429855360,-2309.58,0.0002,2]
[381939062,1756429855370,-480.0,0.0002,2]
[381939064,1756429855381,-480.0,0.0002,2]
[381939066,1756429855393,-480.0,0.0002,2]
[381939068,1756429855402,-480.0,0.0002,2]
[381939070,1756429855412,-480.0,0.0002,2]
[381939072,1756429855423,-480.0,0.0002,2]
[381939074,1756429855432,-480.0,0.0002,2]
[381939076,1756429855441,-667.595923,0.0002,2]
[381939078,1756429855451,-480.0,0.0002,2]
[381939079,1756429855461,-667.595923,0.0002,2]
[381939081,1756429855470,-667.595923,0.0002,2]
[381939083,1756429855479,-480.0,0.0002,2]
[381939085,1756429855488,-480.0,0.0002,2]
[381939087,1756429855497,-667.595926,0.0002,2]
[381939089,1756429855507,-697.16,0.0002,2]
[381939091,1756429855516,-906.69,0.0002,2]
[381939092,1756429855526,-480.0,0.0002,2]
[381939094,1756429855535,-480.0,0.0002,2]
[381939096,1756429855545,-480.0,0.0002,2]
[381939098,1756429855554,-480.0,0.0002,2]
[381939100,1756429855564,-480.0,0.0002,2]
[381939102,1756429855573,-480.0,0.0002,2]
[381939104,1756429855582,-1000.0,0.00020021,2]
[381939106,1756429855591,-500.0,0.00020021,2]
[381939108,1756429855600,-500.0,0.00020021,2]
[381939110,1756429855610,-195.9990109,0.00020021,2]
[381939111,1756429855619,-619.22430229,0.00020021,2]
[381939113,1756429855629,-500.0,0.00020021,2]
[381939115,1756429855639,-151.0,0.00020021,2]
[381939117,1756429855648,-151.0,0.00020021,2]
[381939119,1756429855657,-4000.0,0.00020094,4]
[381939121,1756429855667,-696.37192066,0.00020105,2]
[381939123,1756429855676,-160.0,0.00020141,2]
[381939125,1756429855685,-158.7199,0.00020187,2]
[381939127,1756429855694,-480.0,0.00020273,2]
[381939128,1756429855703,-480.0,0.00020273,2]
[381939130,1756429855712,-480.0,0.00020273,2]
[381939132,1756429855721,-480.0,0.00020273,2]
[381939134,1756429855730,-480.0,0.00020273,2]
[381939136,1756429855740,-480.0,0.00020273,2]
[381939138,1756429855749,-223.12,0.00020273,2]
[381939140,1756429855759,-480.0,0.00020273,2]
[381939142,1756429855768,-480.0,0.00020273,2]
[381939144,1756429855777,-342.67567441,0.00020273,2]
[381939146,1756429855786,-480.0,0.00020273,2]
[381939147,1756429855798,-480.0,0.00020273,2]
[381939149,1756429855808,-480.0,0.00020273,2]
[381939151,1756429855817,-480.0,0.00020273,2]
[381939153,1756429855827,-151.0,0.00020273,2]
[381939155,1756429855835,-480.0,0.00020273,2]
[381939157,1756429855844,-151.0,0.00020273,2]
[381939159,1756429855854,-151.0,0.00020273,2]
[381939161,1756429855863,-232.91,0.00020273,2]
[381939163,1756429855872,-471.72,0.00020273,2]
[381939165,1756429855882,-480.0,0.00020273,2]
[381939166,1756429855891,-480.0,0.00020273,2]
[381939168,1756429855900,-189.23356942,0.00020273,2]
[381939170,1756429855909,-480.0,0.00020273,2]
[381939172,1756429855918,-480.0,0.00020273,2]
[381939174,1756429855927,-480.0,0.00020273,2]
[381939176,1756429855936,-180.81,0.00020273,2]
[381939178,1756429855945,-480.0,0.00020273,2]
[381939180,1756429855955,-480.0,0.00020273,2]
[381939181,1756429855964,-480.0,0.00020273,2]
[381939183,1756429855973,-480.0,0.00020273,2]
[381939185,1756429855982,-480.0,0.00020273,2]
[381939187,1756429855991,-480.0,0.00020273,2]
[381939189,1756429856001,-480.0,0.00020273,2]
[381939191,1756429856010,-480.0,0.00020273,2]
[381939193,1756429856019,-480.0,0.00020273,2]
[381939194,1756429856029,-480.0,0.00020273,2]
[381939196,1756429856038,-480.0,0.00020273,2]
[381939198,1756429856048,-480.0,0.00020273,2]
[381939200,1756429856057,-480.0,0.00020273,2]
[381939202,1756429856066,-480.0,0.00020273,2]
[381939204,1756429856075,-480.0,0.00020273,2]
[381939206,1756429856084,-480.0,0.00020273,2]
[381939208,1756429856093,-265.31,0.00020273,2]
[381939209,1756429856102,-548.61,0.00020273,2]
[381939211,1756429856111,-595.29,0.00020273,2]
[381939213,1756429856120,-480.0,0.00020273,2]
[381939215,1756429856130,-480.0,0.00020273,2]
[381939217,1756429856139,-255.308479,0.00020273,2]
[381939219,1756429856148,-255.308479,0.00020273,2]
[381939221,1756429856157,-255.308479,0.00020273,2]
[381939223,1756429856166,-255.308473,0.00020273,2]
[381939224,1756429856175,-151.0,0.00020273,2]
[381939226,1756429856185,-480.0,0.00020273,2]
[381939228,1756429856195,-151.0,0.00020273,2]
[381939230,1756429856204,-480.0,0.00020273,2]
[381939232,1756429856214,-151.025027,0.00020273,2]
[381939234,1756429856222,-151.025027,0.00020273,2]
[381939236,1756429856231,-480.0,0.00020273,2]
[381939238,1756429856240,-151.025027,0.00020273,2]
[381939240,1756429856249,-151.025018,0.00020273,2]
[381939241,1756429856259,-274.43645349,0.00020273,2]
[381939243,1756429856268,-480.0,0.00020273,2]
[381939245,1756429856277,-480.0,0.00020273,2]
[381939247,1756429856287,-301.72,0.00020273,2]
[381939249,1756429856295,-480.0,0.00020273,2]
[381939251,1756429856304,-480.0,0.00020273,2]
[381939253,1756429856313,-480.0,0.00020273,2]
[381939255,1756429856322,-480.0,0.00020273,2]
[381939257,1756429856332,-480.0,0.00020273,2]
[381939258,1756429856341,-204.21,0.00020273,2]
[381939260,1756429856350,-480.0,0.00020273,2]
[381939262,1756429856359,-1614.17,0.00020273,2]
[381939264,1756429856369,-480.0,0.00020273,2]
[381939266,1756429856378,-480.0,0.00020273,2]
[381939268,1756429856389,-480.0,0.00020273,2]
[381939277,1756429856474,-480.0,0.00020273,2]
[381939279,1756429856484,-480.0,0.00020273,2]
[381939281,1756429856493,-480.0,0.00020273,2]
[381939283,1756429856503,-577.53,0.00020273,2]
[381939284,1756429856512,-480.0,0.00020273,2]
[381939286,1756429856521,-480.0,0.00020273,2]
[381939288,1756429856531,-560.92,0.00020273,2]
[381939290,1756429856540,-179.88,0.00020273,2]
[381939292,1756429856549,-480.0,0.00020273,2]
[381939294,1756429856558,-483.83,0.00020273,2]
[381939296,1756429856568,-480.0,0.00020273,2]
[381939298,1756429856577,-480.0,0.00020273,2]
[381939300,1756429856587,-480.0,0.00020273,2]
[381939302,1756429856596,-391.54,0.00020273,2]
[381939303,1756429856608,-480.0,0.00020273,2]
[381939305,1756429856617,-480.0,0.00020273,2]
[381939307,1756429856626,-480.0,0.00020273,2]
[381939309,1756429856635,-590.88,0.00020273,2]
[381939311,1756429856645,-156.58,0.00020273,2]
[381939313,1756429856654,-1110.27,0.00020273,2]
[381939315,1756429856663,-480.0,0.00020273,2]
[381939317,1756429856672,-286.32,0.00020273,2]
[381939319,1756429856681,-480.0,0.00020273,2]
[381939321,1756429856691,-480.0,0.00020273,2]
[381939322,1756429856701,-480.0,0.00020273,2]
[381939324,1756429856710,-480.0,0.00020273,2]
[381939326,1756429856720,-480.0,0.00020273,2]
[381939328,1756429856729,-235.12874638,0.00020273,2]
[381939330,1756429856739,-480.0,0.00020273,2]
[381939332,1756429856748,-480.0,0.00020273,2]
[381939333,1756429856758,-480.0,0.00020273,2]
[381939334,1756429856767,-480.0,0.00020273,2]
[381939335,1756429856777,-480.0,0.00020273,2]
[381939336,1756429856786,-480.0,0.00020273,2]
[381939337,1756429856795,-363.49,0.00020273,2]
[381939338,1756429856805,-480.0,0.00020273,2]
[381939339,1756429856814,-480.0,0.00020273,2]
[381939340,1756429856824,-480.0,0.00020273,2]
[381939341,1756429856833,-597.26,0.00020273,2]
[381939342,1756429856842,-493.61,0.00020273,2]
[381939343,1756429856852,-2212.03,0.00020273,2]
[381939344,1756429856861,-480.0,0.00020273,2]
[381939345,1756429856871,-542.26,0.00020273,2]
[381939346,1756429856881,-480.0,0.00020273,2]
[381939347,1756429856890,-368.71,0.00020273,2]
[381939348,1756429856899,-342.95215833,0.00020273,2]
[381939349,1756429856908,-480.0,0.00020273,2]
[381939350,1756429856918,-480.0,0.00020273,2]
[381939351,1756429856927,-180.88,0.00020273,2]
[381939352,1756429856936,-480.0,0.00020273,2]
[381939353,1756429856945,-2309.58,0.00020273,2]
[381939354,1756429856954,-480.0,0.00020273,2]
[381939356,1756429856964,-480.0,0.00020273,2]
[381939357,1756429856973,-585.13587504,0.00020273,2]
[381939359,1756429856983,-480.0,0.00020273,2]
[381939361,1756429856993,-480.0,0.00020273,2]
[381939363,1756429857003,-177.15,0.00020273,2]
[381939365,1756429857012,-480.0,0.00020273,2]
[381939367,1756429857022,-480.0,0.00020273,2]
[381939369,1756429857031,-480.0,0.00020273,2]
[381939371,1756429857040,-697.16,0.00020273,2]
[381939373,1756429857050,-906.69,0.00020273,2]
[381939375,1756429857059,-480.0,0.00020273,2]
[381939377,1756429857069,-480.0,0.00020273,2]
[381939379,1756429857079,-480.0,0.00020273,2]
[381939381,1756429857089,-480.0,0.00020273,2]
[381939383,1756429857098,-151.0,0.00020305,2]
[381939385,1756429857107,-151.0,0.00020305,2]
[381939387,1756429857122,-151.0,0.00020305,2]
[381939389,1756429857132,-500.0,0.00020321,2]
[381939391,1756429857142,-645.11635765,0.00020321,2]
[381939393,1756429857151,-520.46407251,0.00020321,2]
[381939395,1756429857161,-1000.0,0.00020321,2]
[381939397,1756429857170,-500.0,0.00020321,2]
[381939399,1756429857179,-232.64478309,0.00020329,2]
[381939401,1756429857189,-160.0,0.00020329,2]
[381939403,1756429857198,-845.47023312,0.00020329,2]
[381939405,1756429857208,-160.0,0.00020329,2]
[381939407,1756429857217,-160.0,0.00020329,2]
[381939409,1756429857227,-216.18903889,0.00020329,2]
[381939411,1756429857237,-12710.44222334,0.00020329,2]
[381939413,1756429857248,-529.67291817,0.00020329,2]
[381939416,1756429857257,-160.0,0.00020329,2]
[381939418,1756429857267,-160.0,0.00020329,2]
[381939420,1756429857277,-417.15472785,0.00020329,2]
[381939422,1756429857287,-217.27834477,0.00020329,2]
[381939424,1756429857297,-160.0,0.00020329,2]
[381939426,1756429857306,-425.52029335,0.00020329,2]
[381939428,1756429857315,-502.48112782,0.00020373,2]
[381939430,1756429857324,-500.0,0.00020373,2]
[381939432,1756429857334,-310.20720119,0.00020373,2]
[381939434,1756429857344,-696.37192066,0.00020447,2]
[381939436,1756429857353,-302.48,0.00020538,3]
[381939438,1756429857362,-480.0,0.00020547,2]
[381939440,1756429857372,-480.0,0.00020547,2]
[381939442,1756429857382,-480.0,0.00020547,2]
[381939444,1756429857394,-480.0,0.00020547,2]
[381939446,1756429857404,-480.0,0.00020547,2]
[381939448,1756429857413,-480.0,0.00020547,2]
[381939450,1756429857423,-480.0,0.00020547,2]
[381939452,1756429857433,-480.0,0.00020547,2]
[381939454,1756429857443,-408.53,0.00020547,2]
[381939456,1756429857456,-480.0,0.00020547,2]
[381939458,1756429857467,-480.0,0.00020547,2]
[381939460,1756429857478,-215.18,0.00020547,2]
[381939462,1756429857492,-480.0,0.00020547,2]
[381939464,1756429857502,-209.940741,0.00020547,2]
[381939467,1756429857514,-209.940741,0.00020547,2]
[381939468,1756429857524,-209.940741,0.00020547,2]
[381939470,1756429857535,-209.940741,0.00020547,2]
[381939472,1756429857544,-480.0,0.00020547,2]
[381939474,1756429857554,-480.0,0.00020547,2]
[381939476,1756429857563,-480.0,0.00020547,2]
[381939478,1756429857572,-235.85379189,0.00020547,2]
[381939480,1756429857581,-480.0,0.00020547,2]
[381939482,1756429857591,-480.0,0.00020547,2]
[381939484,1756429857600,-151.0,0.00020547,2]
[381939486,1756429857610,-151.0,0.00020547,2]
[381939488,1756429857619,-151.0,0.00020547,2]
[381939490,1756429857630,-480.0,0.00020547,2]
[381939492,1756429857639,-480.0,0.00020547,2]
[381939494,1756429857648,-480.0,0.00020547,2]
[381939496,1756429857657,-480.0,0.00020547,2]
[381939498,1756429857667,-345.59,0.00020547,2]
[381939500,1756429857677,-480.0,0.00020547,2]
[381939503,1756429857687,-480.0,0.00020547,2]
[381939505,1756429857697,-519.15,0.00020547,2]
[381939507,1756429857706,-480.0,0.00020547,2]
[381939509,1756429857715,-480.0,0.00020547,2]
[381939511,1756429857724,-480.0,0.00020547,2]
[381939512,1756429857733,-1614.17,0.00020547,2]
[381939514,1756429857742,-480.0,0.00020547,2]
[381939516,1756429857752,-480.0,0.00020547,2]
[381939518,1756429857761,-480.0,0.00020547,2]
[381939520,1756429857771,-480.0,0.00020547,2]
[381939522,1756429857781,-480.0,0.00020547,2]
[381939524,1756429857791,-577.53,0.00020547,2]
[381939526,1756429857799,-480.0,0.00020547,2]
[381939528,1756429857809,-154.20093212,0.00020547,2]
[381939530,1756429857819,-186.77,0.00020547,2]
[381939532,1756429857828,-480.0,0.00020547,2]
[381939534,1756429857837,-480.0,0.00020547,2]
[381939536,1756429857846,-480.0,0.00020547,2]
[381939538,1756429857855,-480.0,0.00020547,2]
[381939540,1756429857865,-480.0,0.00020547,2]
[381939543,1756429857875,-1110.27,0.00020547,2]
[381939545,1756429857885,-480.0,0.00020547,2]
[381939547,1756429857895,-480.0,0.00020547,2]
[381939549,1756429857904,-480.0,0.00020547,2]
[381939551,1756429857913,-480.0,0.00020547,2]
[381939553,1756429857922,-480.0,0.00020547,2]
[381939554,1756429857931,-480.0,0.00020547,2]
[381939557,1756429857941,-480.0,0.00020547,2]
[381939558,1756429857950,-480.0,0.00020547,2]
[381939560,1756429857959,-500.41,0.00020547,2]
[381939562,1756429857969,-536.52,0.00020547,2]
[381939564,1756429857979,-480.0,0.00020547,2]
[381939567,1756429857989,-480.0,0.00020547,2]
[381939569,1756429857999,-480.0,0.00020547,2]
[381939571,1756429858009,-582.87,0.00020547,2]
[381939573,1756429858018,-493.61,0.00020547,2]
[381939575,1756429858028,-2212.03,0.00020547,2]
[381939577,1756429858037,-480.0,0.00020547,2]
[381939579,1756429858047,-550.64752988,0.00020547,2]
[381939581,1756429858056,-480.0,0.00020547,2]
[381939591,1756429858145,-480.0,0.00020547,2]
[381939593,1756429858156,-480.0,0.00020547,2]
[381939595,1756429858166,-2309.58,0.00020547,2]
[381939597,1756429858176,-480.0,0.00020547,2]
[381939599,1756429858186,-613.07,0.00020547,2]
[381939601,1756429858195,-480.0,0.00020547,2]
[381939603,1756429858205,-480.0,0.00020547,2]
[381939605,1756429858215,-480.0,0.00020547,2]
[381939607,1756429858225,-480.0,0.00020547,2]
[381939609,1756429858234,-697.16,0.00020547,2]
[381939611,1756429858243,-906.69,0.00020547,2]
[381939613,1756429858253,-480.0,0.00020547,2]
[381939615,1756429858263,-480.0,0.00020547,2]
[381939617,1756429858272,-480.0,0.00020547,2]
[381939619,1756429858281,-480.0,0.00020547,2]
[381939621,1756429858291,-500.0,0.00020568,2]
[381939624,1756429858301,-260.0,0.00020689,2]
[381939626,1756429858311,-5000.0,0.00020733,2]
[381939628,1756429858320,-420.0,0.00020792,2]
[381939630,1756429858330,-480.0,0.00020821,2]
[381939632,1756429858339,-379.70577481,0.00020821,2]
[381939634,1756429858349,-480.0,0.00020821,2]
[381939636,1756429858358,-452.3157933,0.00020821,2]
[381939638,1756429858367,-151.0,0.00020821,2]
[381939640,1756429858378,-483.76,0.00020821,2]
[381939642,1756429858394,-304.24,0.00020821,2]
[381939644,1756429858404,-480.0,0.00020821,2]
[381939646,1756429858413,-480.0,0.00020821,2]
[381939648,1756429858422,-480.0,0.00020821,2]
[381939650,1756429858432,-276.032119,0.00020821,2]
[381939652,1756429858442,-263.52,0.00020821,2]
[381939654,1756429858452,-480.0,0.00020821,2]
[381939656,1756429858461,-480.0,0.00020821,2]
[381939658,1756429858470,-480.0,0.00020821,2]
[381939660,1756429858480,-319.11,0.00020821,2]
[381939662,1756429858490,-480.0,0.00020821,2]
[381939664,1756429858499,-480.0,0.00020821,2]
[381939666,1756429858509,-480.0,0.00020821,2]
[381939668,1756429858518,-480.0,0.00020821,2]
[381939670,1756429858528,-480.0,0.00020821,2]
[381939672,1756429858538,-480.0,0.00020821,2]
[381939674,1756429858547,-538.51,0.00020821,2]
[381939676,1756429858557,-1614.17,0.00020821,2]
[381939678,1756429858566,-480.0,0.00020821,2]
[381939680,1756429858576,-480.0,0.00020821,2]
[381939682,1756429858585,-577.53,0.00020821,2]
[381939684,1756429858595,-480.0,0.00020821,2]
[381939686,1756429858607,-480.0,0.00020821,2]
[381939688,1756429858616,-480.0,0.00020821,2]
[381939690,1756429858626,-480.0,0.00020821,2]
[381939692,1756429858638,-314.01,0.00020821,2]
[381939694,1756429858647,-480.0,0.00020821,2]
[381939696,1756429858657,-1110.27,0.00020821,2]
[381939698,1756429858666,-480.0,0.00020821,2]
[381939700,1756429858675,-480.0,0.00020821,2]
[381939702,1756429858685,-480.0,0.00020821,2]
[381939704,1756429858694,-480.0,0.00020821,2]
[381939706,1756429858703,-314.19,0.00020821,2]
[381939708,1756429858713,-257.43,0.00020821,2]